[Event "*** Titled Tuesday Blitz"]
[Site "Chess.com"]
[Date "2020.12.29"]
[Round "3"]
[White "Angel_Hranitel_37"]
[Black "IMAghasiyevKamal"]
[Result "0-1"]
[WhiteElo "2414"]
[BlackElo "2612"]
[TimeControl "180+1"]
[EndTime "10:29:01 PST"]
[Termination "IMAghasiyevKamal won by resignation"]

1. d4 {[%clk 0:03:00.9]} 1... d5 {[%clk 0:02:57.6]} 2. c4 {[%clk 0:03:00.6]}
2... e6 {[%clk 0:02:57.8]} 3. Nf3 {[%clk 0:03:00.7]} 3... Nf6 {[%clk 0:02:58]}
4. g3 {[%clk 0:03:01.2]} 4... Be7 {[%clk 0:02:57.1]} 5. Bg2 {[%clk 0:03:01.8]}
5... O-O {[%clk 0:02:57.2]} 6. O-O {[%clk 0:03:02.3]} 6... c5 {[%clk 0:02:55.4]}
7. cxd5 {[%clk 0:03:00.5]} 7... exd5 {[%clk 0:02:55.1]} 8. dxc5 {[%clk
0:03:00.8]} 8... Bxc5 {[%clk 0:02:54.5]} 9. a3 {[%clk 0:03:01.4]} 9... Nc6
{[%clk 0:02:53.2]} 10. b4 {[%clk 0:03:01.1]} 10... Be7 {[%clk 0:02:53.2]} 11.
Nc3 {[%clk 0:02:59.7]} 11... Be6 {[%clk 0:02:40.3]} 12. Bb2 {[%clk 0:02:57.9]}
12... Rc8 {[%clk 0:02:40.1]} 13. Rc1 {[%clk 0:02:57.6]} 13... a6 {[%clk
0:02:30.2]} 14. Na4 {[%clk 0:02:49.1]} 14... Ne4 {[%clk 0:02:29.3]} 15. Nd4
{[%clk 0:02:37.1]} 15... Nxd4 {[%clk 0:02:16.7]} 16. Bxd4 {[%clk 0:02:38]} 16...
Rxc1 {[%clk 0:02:15.1]} 17. Qxc1 {[%clk 0:02:37.9]} 17... Bf6 {[%clk 0:02:15.3]}
18. Rd1 {[%clk 0:01:39.7]} 18... Bxd4 {[%clk 0:02:05.2]} 19. Rxd4 {[%clk
0:01:40.6]} 19... Qf6 {[%clk 0:02:05.5]} 20. Qe3 {[%clk 0:01:41.2]} 20... Rc8
{[%clk 0:02:02.3]} 21. Bxe4 {[%clk 0:00:54.2]} 21... dxe4 {[%clk 0:02:00.8]} 22.
Nc5 {[%clk 0:00:54.9]} 22... Bf5 {[%clk 0:01:35.8]} 23. Kg2 {[%clk 0:00:41.9]}
23... a5 {[%clk 0:01:28.1]} 24. Nxe4 {[%clk 0:00:37.4]} 24... Qe6 {[%clk
0:01:24.6]} 25. Ng5 {[%clk 0:00:19.4]} 25... Qxe3 {[%clk 0:01:21.5]} 26. fxe3
{[%clk 0:00:20.3]} 26... h6 {[%clk 0:01:19]} 27. Nf3 {[%clk 0:00:20]} 27... a4
{[%clk 0:01:10.7]} 28. e4 {[%clk 0:00:18.3]} 28... Be6 {[%clk 0:01:07.7]} 29.
Rd3 {[%clk 0:00:17.8]} 29... g5 {[%clk 0:01:01.8]} 30. Nd4 {[%clk 0:00:17.2]}
30... Bg4 {[%clk 0:00:53.6]} 31. Kf2 {[%clk 0:00:16.3]} 31... Rc1 {[%clk
0:00:52.4]} 32. Nb5 {[%clk 0:00:16.3]} 32... Rc2 {[%clk 0:00:51.2]} 33. Nc3
{[%clk 0:00:14.7]} 33... Kg7 {[%clk 0:00:47.9]} 34. Kg2 {[%clk 0:00:13.9]} 34...
Bxe2 {[%clk 0:00:47.6]} 35. Nxe2 {[%clk 0:00:08]} 35... Rxe2+ {[%clk 0:00:48.5]}
36. Kf3 {[%clk 0:00:03.5]} 36... Rxh2 {[%clk 0:00:48.5]} 37. Kg4 {[%clk
0:00:03.7]} 37... Rb2 {[%clk 0:00:44.6]} 38. Rd7 {[%clk 0:00:03.8]} 38... Kg6
{[%clk 0:00:39.3]} 39. Rxb7 {[%clk 0:00:03.1]} 39... Rb3 {[%clk 0:00:39.7]} 40.
Rb6+ {[%clk 0:00:03.3]} 40... f6 {[%clk 0:00:39.1]} 41. e5 {[%clk 0:00:03.9]}
41... h5+ {[%clk 0:00:39.4]} 42. Kh3 {[%clk 0:00:04.5]} 42... h4 {[%clk
0:00:39.6]} 43. Rxf6+ {[%clk 0:00:03.9]} 43... Kh5 {[%clk 0:00:40.1]} 44. Rf8
{[%clk 0:00:03.1]} 44... Rxg3+ {[%clk 0:00:40.2]} 45. Kh2 {[%clk 0:00:04]} 45...
Rxa3 {[%clk 0:00:39.4]} 46. e6 {[%clk 0:00:03.9]} 46... Re3 {[%clk 0:00:39.5]}
47. Re8 {[%clk 0:00:04.3]} 47... a3 {[%clk 0:00:39.9]} 48. b5 {[%clk 0:00:03.4]}
48... a2 {[%clk 0:00:39.3]} 49. Ra8 {[%clk 0:00:04]} 49... Re2+ {[%clk
0:00:39.3]} 50. Kh1 {[%clk 0:00:03.6]} 50... Re1+ {[%clk 0:00:39.7]} 51. Kh2
{[%clk 0:00:03.8]} 51... a1=Q {[%clk 0:00:40.6]} 52. Rxa1 {[%clk 0:00:03.8]}
52... Rxa1 {[%clk 0:00:41.4]} 53. b6 {[%clk 0:00:04.1]} 53... Ra8 {[%clk
0:00:39.9]} 54. e7 {[%clk 0:00:04]} 54... Kg6 {[%clk 0:00:39.6]} 55. b7 {[%clk
0:00:04.9]} 55... Rb8 {[%clk 0:00:39.7]} 56. e8=Q+ {[%clk 0:00:04.3]} 56... Rxe8
{[%clk 0:00:39.3]} 57. b8=R {[%clk 0:00:05.2]} 57... Rxb8 {[%clk 0:00:39.3]} 0-1

[Event "*** Titled Tuesday Blitz"]
[Site "Chess.com"]
[Date "2020.12.29"]
[Round "3"]
[White "Nadeev_Sergey"]
[Black "Dynamikus"]
[Result "1-0"]
[WhiteElo "2456"]
[BlackElo "2729"]
[TimeControl "180+1"]
[EndTime "10:29:02 PST"]
[Termination "Nadeev_Sergey won by resignation"]

1. e4 {[%clk 0:02:59.6]} 1... c6 {[%clk 0:02:54.8]} 2. d4 {[%clk 0:02:59.4]}
2... d5 {[%clk 0:02:53.2]} 3. Nc3 {[%clk 0:03:00.3]} 3... dxe4 {[%clk
0:02:46.8]} 4. Nxe4 {[%clk 0:03:01.2]} 4... Bf5 {[%clk 0:02:47.2]} 5. Ng3 {[%clk
0:03:01.2]} 5... Bg6 {[%clk 0:02:47.4]} 6. h4 {[%clk 0:03:01.8]} 6... h6 {[%clk
0:02:46.7]} 7. Nf3 {[%clk 0:03:02.3]} 7... e6 {[%clk 0:02:44.6]} 8. Ne5 {[%clk
0:02:59]} 8... Bh7 {[%clk 0:02:44.8]} 9. Bd3 {[%clk 0:02:58.9]} 9... Bxd3 {[%clk
0:02:44.1]} 10. Qxd3 {[%clk 0:02:59]} 10... Nd7 {[%clk 0:02:43.3]} 11. f4 {[%clk
0:02:58.9]} 11... Be7 {[%clk 0:02:42.7]} 12. h5 {[%clk 0:02:53.9]} 12... Ngf6
{[%clk 0:02:23.4]} 13. Bd2 {[%clk 0:02:45.8]} 13... O-O {[%clk 0:02:23.1]} 14.
O-O-O {[%clk 0:02:45.4]} 14... c5 {[%clk 0:02:23.1]} 15. Be3 {[%clk 0:01:59.2]}
15... Nd5 {[%clk 0:02:09.2]} 16. Nxd7 {[%clk 0:01:55.8]} 16... Qxd7 {[%clk
0:02:05.1]} 17. dxc5 {[%clk 0:01:56]} 17... Qa4 {[%clk 0:02:01.4]} 18. Kb1
{[%clk 0:01:52.2]} 18... Nxf4 {[%clk 0:01:43.8]} 19. Qe4 {[%clk 0:01:21]} 19...
Qxe4 {[%clk 0:01:34.7]} 20. Nxe4 {[%clk 0:01:21.9]} 20... Nxg2 {[%clk
0:01:21.6]} 21. Bxh6 {[%clk 0:01:19.6]} 21... gxh6 {[%clk 0:00:52.2]} 22. Rhg1
{[%clk 0:01:17.7]} 22... Rad8 {[%clk 0:00:52.7]} 23. Rxg2+ {[%clk 0:01:17.9]}
23... Kh7 {[%clk 0:00:53.4]} 24. Rgd2 {[%clk 0:00:29.8]} 24... Rxd2 {[%clk
0:00:44.3]} 25. Rxd2 {[%clk 0:00:30.7]} 25... Rd8 {[%clk 0:00:42.1]} 26. Rxd8
{[%clk 0:00:27.4]} 26... Bxd8 {[%clk 0:00:43]} 27. Nd6 {[%clk 0:00:27.9]} 27...
b6 {[%clk 0:00:35.7]} 28. c6 {[%clk 0:00:27.1]} 28... Kg7 {[%clk 0:00:29]} 29.
Ne8+ {[%clk 0:00:23.5]} 29... Kf8 {[%clk 0:00:27]} 30. c7 {[%clk 0:00:24.4]}
30... Bxc7 {[%clk 0:00:25.4]} 31. Nxc7 {[%clk 0:00:25.3]} 31... Ke7 {[%clk
0:00:24.5]} 32. Kc1 {[%clk 0:00:24.6]} 32... Kf6 {[%clk 0:00:20.8]} 33. Nb5
{[%clk 0:00:20.2]} 33... a6 {[%clk 0:00:20.3]} 34. Nd6 {[%clk 0:00:20.3]} 34...
b5 {[%clk 0:00:17.1]} 35. Kd2 {[%clk 0:00:18.4]} 35... Kg5 {[%clk 0:00:16.8]}
36. Nxf7+ {[%clk 0:00:18.4]} 36... Kxh5 {[%clk 0:00:17.5]} 37. Ke3 {[%clk
0:00:17.2]} 37... Kg6 {[%clk 0:00:16.5]} 38. Ne5+ {[%clk 0:00:17.7]} 38... Kf5
{[%clk 0:00:16.8]} 39. Nc6 {[%clk 0:00:16.6]} 39... h5 {[%clk 0:00:16.2]} 40.
Nb4 {[%clk 0:00:16.9]} 40... a5 {[%clk 0:00:16]} 41. Nc6 {[%clk 0:00:17.6]}
41... a4 {[%clk 0:00:16.2]} 42. Nd4+ {[%clk 0:00:18.2]} 42... Ke5 {[%clk
0:00:15.4]} 43. Nxb5 {[%clk 0:00:18]} 43... h4 {[%clk 0:00:16.3]} 44. Nc3 {[%clk
0:00:17.6]} 44... h3 {[%clk 0:00:16.3]} 45. Kf2 {[%clk 0:00:17.6]} 45... a3
{[%clk 0:00:16.7]} 46. bxa3 {[%clk 0:00:17.5]} 46... Kd4 {[%clk 0:00:17.1]} 47.
Ne2+ {[%clk 0:00:17.8]} 47... Ke4 {[%clk 0:00:15.7]} 48. a4 {[%clk 0:00:17.8]}
48... h2 {[%clk 0:00:15.7]} 49. Kg2 {[%clk 0:00:17.8]} 49... Ke3 {[%clk
0:00:16.4]} 50. Ng3 {[%clk 0:00:17.3]} 50... Kd4 {[%clk 0:00:14.6]} 51. Kxh2
{[%clk 0:00:17.8]} 51... Kc4 {[%clk 0:00:14.9]} 52. Ne2 {[%clk 0:00:17.6]} 52...
Kb4 {[%clk 0:00:15.2]} 53. Kg3 {[%clk 0:00:17.9]} 53... Kxa4 {[%clk 0:00:15.4]}
54. Kf4 {[%clk 0:00:18.1]} 54... Ka3 {[%clk 0:00:16.1]} 55. c3 {[%clk
0:00:18.6]} 55... Kxa2 {[%clk 0:00:16.8]} 56. c4 {[%clk 0:00:18.5]} 56... Kb3
{[%clk 0:00:17.7]} 57. c5 {[%clk 0:00:19]} 1-0

[Event "*** Titled Tuesday Blitz"]
[Site "Chess.com"]
[Date "2020.12.29"]
[Round "3"]
[White "elextranjero00"]
[Black "BikingBrian"]
[Result "1-0"]
[WhiteElo "2618"]
[BlackElo "2269"]
[TimeControl "180+1"]
[EndTime "10:29:07 PST"]
[Termination "elextranjero00 won by resignation"]

1. d4 {[%clk 0:03:00.9]} 1... Nf6 {[%clk 0:02:58.5]} 2. c4 {[%clk 0:03:00.5]}
2... g6 {[%clk 0:02:58.9]} 3. Nc3 {[%clk 0:02:55.6]} 3... Bg7 {[%clk 0:02:59.3]}
4. e4 {[%clk 0:02:55.2]} 4... d6 {[%clk 0:02:59.7]} 5. Be2 {[%clk 0:02:53.3]}
5... O-O {[%clk 0:02:59.4]} 6. Be3 {[%clk 0:02:53.3]} 6... Na6 {[%clk
0:02:54.8]} 7. Nf3 {[%clk 0:02:48.4]} 7... Ng4 {[%clk 0:02:39.5]} 8. Bg5 {[%clk
0:02:44.7]} 8... Qe8 {[%clk 0:02:39.2]} 9. h3 {[%clk 0:02:32.9]} 9... Nf6 {[%clk
0:02:35.9]} 10. O-O {[%clk 0:02:27.9]} 10... e5 {[%clk 0:02:35.4]} 11. dxe5
{[%clk 0:01:27.1]} 11... dxe5 {[%clk 0:02:34.3]} 12. Qc1 {[%clk 0:01:01.2]}
12... Nc5 {[%clk 0:02:20.6]} 13. Nd5 {[%clk 0:00:51.5]} 13... Ncxe4 {[%clk
0:01:48.2]} 14. Nxc7 {[%clk 0:00:48.5]} 14... Qd8 {[%clk 0:01:29.2]} 15. Nxa8
{[%clk 0:00:46.7]} 15... Nxg5 {[%clk 0:01:28.8]} 16. Qxg5 {[%clk 0:00:37.6]}
16... Be6 {[%clk 0:01:23.2]} 17. Nxe5 {[%clk 0:00:29.6]} 17... Qxa8 {[%clk
0:01:19.2]} 18. Rad1 {[%clk 0:00:24.6]} 18... Ne4 {[%clk 0:01:12.5]} 19. Qf4
{[%clk 0:00:23.7]} 19... Qb8 {[%clk 0:01:00.8]} 20. Nxg6 {[%clk 0:00:15.4]}
20... hxg6 {[%clk 0:00:56]} 21. Qxe4 {[%clk 0:00:15.5]} 21... Bf5 {[%clk
0:00:52.1]} 22. Qf3 {[%clk 0:00:14.6]} 22... Re8 {[%clk 0:00:47.7]} 23. Bd3
{[%clk 0:00:13]} 23... Bxd3 {[%clk 0:00:42.8]} 24. Rxd3 {[%clk 0:00:13.9]} 24...
Qc7 {[%clk 0:00:38.2]} 25. b3 {[%clk 0:00:13.9]} 25... b6 {[%clk 0:00:35.1]} 26.
Rfd1 {[%clk 0:00:13.6]} 26... Qe5 {[%clk 0:00:23.3]} 27. g3 {[%clk 0:00:13.4]}
27... Qb2 {[%clk 0:00:19.8]} 28. Rd7 {[%clk 0:00:11.5]} 28... Rf8 {[%clk
0:00:20]} 29. R1d2 {[%clk 0:00:11.1]} 29... Qa1+ {[%clk 0:00:19.3]} 30. Kg2
{[%clk 0:00:11.4]} 30... Qe5 {[%clk 0:00:19.5]} 31. h4 {[%clk 0:00:10.5]} 31...
Qc5 {[%clk 0:00:18.4]} 32. Re2 {[%clk 0:00:09.5]} 32... Qf5 {[%clk 0:00:17.3]}
33. Qxf5 {[%clk 0:00:09.1]} 33... gxf5 {[%clk 0:00:18.2]} 34. Rxa7 {[%clk
0:00:09.1]} 34... Bf6 {[%clk 0:00:17]} 35. Rb7 {[%clk 0:00:09.1]} 35... Bd4
{[%clk 0:00:16.2]} 36. Rd2 {[%clk 0:00:08.5]} 36... Bc5 {[%clk 0:00:16.2]} 37.
Rd5 {[%clk 0:00:08.7]} 37... Re8 {[%clk 0:00:16.1]} 38. Rxf5 {[%clk 0:00:08.5]}
38... Re2 {[%clk 0:00:16.8]} 39. Rxc5 {[%clk 0:00:08.4]} 39... bxc5 {[%clk
0:00:15.2]} 40. Rc7 {[%clk 0:00:08.6]} 40... Rxa2 {[%clk 0:00:15.3]} 41. Rxc5
{[%clk 0:00:08.8]} 41... Rb2 {[%clk 0:00:15.9]} 42. Rb5 {[%clk 0:00:09.2]} 42...
Kg7 {[%clk 0:00:16.4]} 43. g4 {[%clk 0:00:09.6]} 43... Kg6 {[%clk 0:00:16.5]}
44. Kg3 {[%clk 0:00:10.2]} 44... f6 {[%clk 0:00:16.9]} 45. f3 {[%clk 0:00:10.7]}
45... Rb1 {[%clk 0:00:16.7]} 46. h5+ {[%clk 0:00:11.1]} 46... Kg7 {[%clk
0:00:16]} 47. Kf4 {[%clk 0:00:11.7]} 47... Rf1 {[%clk 0:00:14.9]} 48. Rb7+
{[%clk 0:00:11.2]} 48... Kf8 {[%clk 0:00:14.3]} 49. c5 {[%clk 0:00:11.8]} 49...
Rc1 {[%clk 0:00:13.8]} 50. b4 {[%clk 0:00:12.1]} 50... Rc4+ {[%clk 0:00:13.9]}
51. Kf5 {[%clk 0:00:12.4]} 51... Rc3 {[%clk 0:00:14.6]} 52. f4 {[%clk
0:00:11.9]} 52... Rc4 {[%clk 0:00:15]} 53. h6 {[%clk 0:00:10]} 53... Kg8 {[%clk
0:00:14.8]} 54. g5 {[%clk 0:00:08.8]} 54... fxg5 {[%clk 0:00:14.5]} 55. fxg5
{[%clk 0:00:09.7]} 55... Rc1 {[%clk 0:00:13.7]} 56. Kg6 {[%clk 0:00:07.9]} 56...
Kf8 {[%clk 0:00:13.1]} 57. h7 {[%clk 0:00:07.7]} 1-0

[Event "*** Titled Tuesday Blitz"]
[Site "Chess.com"]
[Date "2020.12.29"]
[Round "3"]
[White "gahryman"]
[Black "jefferyx"]
[Result "0-1"]
[WhiteElo "2686"]
[BlackElo "2919"]
[TimeControl "180+1"]
[EndTime "10:29:08 PST"]
[Termination "jefferyx won on time"]

1. e4 {[%clk 0:03:00.9]} 1... e6 {[%clk 0:02:59.6]} 2. d3 {[%clk 0:02:59.7]}
2... g6 {[%clk 0:02:51.8]} 3. f4 {[%clk 0:02:58.3]} 3... Bg7 {[%clk 0:02:52.2]}
4. Nf3 {[%clk 0:02:58.6]} 4... Ne7 {[%clk 0:02:52.7]} 5. g3 {[%clk 0:02:58.7]}
5... b6 {[%clk 0:02:52.4]} 6. Bg2 {[%clk 0:02:58.8]} 6... Bb7 {[%clk 0:02:53.1]}
7. O-O {[%clk 0:02:59.2]} 7... O-O {[%clk 0:02:53.7]} 8. Kh1 {[%clk 0:02:46.4]}
8... d6 {[%clk 0:02:53.9]} 9. Nc3 {[%clk 0:02:34]} 9... c5 {[%clk 0:02:54.1]}
10. Qe1 {[%clk 0:02:21.5]} 10... Nbc6 {[%clk 0:02:54.3]} 11. g4 {[%clk
0:02:16.5]} 11... Qd7 {[%clk 0:02:52.4]} 12. f5 {[%clk 0:02:08.3]} 12... exf5
{[%clk 0:02:53.3]} 13. gxf5 {[%clk 0:02:07.3]} 13... Rae8 {[%clk 0:02:53.9]} 14.
Qh4 {[%clk 0:02:06.5]} 14... gxf5 {[%clk 0:02:51.9]} 15. Bh6 {[%clk 0:01:48.1]}
15... Ng6 {[%clk 0:02:52.2]} 16. Qh5 {[%clk 0:01:48.3]} 16... fxe4 {[%clk
0:02:28.5]} 17. dxe4 {[%clk 0:01:17.8]} 17... Nce5 {[%clk 0:02:05.2]} 18. Rad1
{[%clk 0:00:58.3]} 18... Qg4 {[%clk 0:01:54.7]} 19. Qxg4 {[%clk 0:00:51.7]}
19... Nxg4 {[%clk 0:01:55.6]} 20. Bxg7 {[%clk 0:00:50.3]} 20... Kxg7 {[%clk
0:01:56.5]} 21. Rxd6 {[%clk 0:00:45.3]} 21... Ne3 {[%clk 0:01:56.6]} 22. Rf2
{[%clk 0:00:43.8]} 22... Rd8 {[%clk 0:01:45.6]} 23. Rfd2 {[%clk 0:00:37.5]}
23... Rxd6 {[%clk 0:01:43.4]} 24. Rxd6 {[%clk 0:00:38.4]} 24... Nf4 {[%clk
0:01:40.2]} 25. Nh4 {[%clk 0:00:36.1]} 25... Nfxg2 {[%clk 0:01:16.4]} 26. Nxg2
{[%clk 0:00:35.8]} 26... Nxc2 {[%clk 0:01:17.3]} 27. Nf4 {[%clk 0:00:33.4]}
27... Nd4 {[%clk 0:01:12.3]} 28. Rd7 {[%clk 0:00:30.5]} 28... Rb8 {[%clk
0:01:12.2]} 29. Ncd5 {[%clk 0:00:29.3]} 29... a5 {[%clk 0:01:03.4]} 30. Kg2
{[%clk 0:00:26]} 30... Bc6 {[%clk 0:01:03.5]} 31. Rd6 {[%clk 0:00:25.2]} 31...
a4 {[%clk 0:00:59]} 32. Nh5+ {[%clk 0:00:25]} 32... Kf8 {[%clk 0:00:59.2]} 33.
Nhf6 {[%clk 0:00:25.3]} 33... Bxd5 {[%clk 0:00:51.9]} 34. Rxd5 {[%clk
0:00:17.7]} 34... Ke7 {[%clk 0:00:52.8]} 35. e5 {[%clk 0:00:18]} 35... Nf5
{[%clk 0:00:49.2]} 36. Rd7+ {[%clk 0:00:12.8]} 36... Ke6 {[%clk 0:00:49.4]} 37.
Ra7 {[%clk 0:00:13.7]} 37... Ne3+ {[%clk 0:00:44.3]} 38. Kf3 {[%clk 0:00:13.6]}
38... Nc4 {[%clk 0:00:45.2]} 39. Nxh7 {[%clk 0:00:13.6]} 39... Nxe5+ {[%clk
0:00:37]} 40. Kf4 {[%clk 0:00:13.6]} 40... f6 {[%clk 0:00:37.2]} 41. h4 {[%clk
0:00:12.7]} 41... Rh8 {[%clk 0:00:34.4]} 42. h5 {[%clk 0:00:12.6]} 42... Nd7
{[%clk 0:00:34.5]} 43. Rxd7 {[%clk 0:00:09.9]} 43... Kxd7 {[%clk 0:00:35.4]} 44.
Nxf6+ {[%clk 0:00:10.7]} 44... Ke6 {[%clk 0:00:36.3]} 45. Kg5 {[%clk 0:00:11.3]}
45... b5 {[%clk 0:00:24.4]} 46. h6 {[%clk 0:00:11.2]} 46... b4 {[%clk
0:00:23.3]} 47. h7 {[%clk 0:00:11]} 47... c4 {[%clk 0:00:22.3]} 48. Kg6 {[%clk
0:00:11.2]} 48... Ke5 {[%clk 0:00:15.2]} 49. Nd7+ {[%clk 0:00:10.3]} 49... Kd4
{[%clk 0:00:14.9]} 50. Nb6 {[%clk 0:00:11.2]} 50... c3 {[%clk 0:00:14.3]} 51.
bxc3+ {[%clk 0:00:10.8]} 51... bxc3 {[%clk 0:00:15.2]} 52. Nxa4 {[%clk 0:00:08]}
52... c2 {[%clk 0:00:15.1]} 53. Nc5 {[%clk 0:00:08.8]} 53... Kxc5 {[%clk
0:00:14.9]} 0-1

[Event "*** Titled Tuesday Blitz"]
[Site "Chess.com"]
[Date "2020.12.29"]
[Round "3"]
[White "Jumbo"]
[Black "Ermito2020"]
[Result "0-1"]
[WhiteElo "2832"]
[BlackElo "2642"]
[TimeControl "180+1"]
[EndTime "10:29:08 PST"]
[Termination "Ermito2020 won by resignation"]

1. d4 {[%clk 0:03:00.9]} 1... Nf6 {[%clk 0:02:58.2]} 2. c4 {[%clk 0:03:00.4]}
2... g6 {[%clk 0:02:58.1]} 3. g3 {[%clk 0:02:59.1]} 3... Bg7 {[%clk 0:02:58.3]}
4. Bg2 {[%clk 0:02:59.7]} 4... d6 {[%clk 0:02:58.1]} 5. Nf3 {[%clk 0:02:59.6]}
5... O-O {[%clk 0:02:58.6]} 6. Nc3 {[%clk 0:03:00.1]} 6... Nbd7 {[%clk
0:02:58.9]} 7. O-O {[%clk 0:02:59.2]} 7... e5 {[%clk 0:02:59.4]} 8. e4 {[%clk
0:02:59.7]} 8... exd4 {[%clk 0:02:59.1]} 9. Nxd4 {[%clk 0:02:59.8]} 9... Re8
{[%clk 0:02:59.5]} 10. Re1 {[%clk 0:02:52.6]} 10... Nc5 {[%clk 0:02:49.4]} 11.
Rb1 {[%clk 0:02:46.4]} 11... Ng4 {[%clk 0:02:39.5]} 12. h3 {[%clk 0:02:08.1]}
12... Ne5 {[%clk 0:02:34.3]} 13. Bf1 {[%clk 0:01:49.9]} 13... Ned3 {[%clk
0:02:09.5]} 14. Bxd3 {[%clk 0:01:48.8]} 14... Bxd4 {[%clk 0:02:08.7]} 15. Bf1
{[%clk 0:01:41.7]} 15... Qf6 {[%clk 0:02:08.2]} 16. Be3 {[%clk 0:01:40]} 16...
Bxe3 {[%clk 0:01:38.2]} 17. Rxe3 {[%clk 0:01:38.8]} 17... Be6 {[%clk 0:01:36.5]}
18. b4 {[%clk 0:01:26.3]} 18... Nd7 {[%clk 0:01:35.4]} 19. Nb5 {[%clk
0:01:22.2]} 19... Rec8 {[%clk 0:01:32.6]} 20. f4 {[%clk 0:01:04]} 20... a6
{[%clk 0:01:30.7]} 21. Nc3 {[%clk 0:00:57.4]} 21... a5 {[%clk 0:01:23.9]} 22. a3
{[%clk 0:00:57.7]} 22... axb4 {[%clk 0:01:23.7]} 23. axb4 {[%clk 0:00:58.6]}
23... Ra3 {[%clk 0:01:20.1]} 24. Nd5 {[%clk 0:00:53.3]} 24... Bxd5 {[%clk
0:01:19.4]} 25. Rxa3 {[%clk 0:00:53.4]} 25... Bxe4 {[%clk 0:01:19.9]} 26. Rc1
{[%clk 0:00:53.9]} 26... Re8 {[%clk 0:01:04.2]} 27. Re3 {[%clk 0:00:51.8]} 27...
Qb2 {[%clk 0:00:56.3]} 28. Qe1 {[%clk 0:00:35.9]} 28... f5 {[%clk 0:00:48.6]}
29. Qc3 {[%clk 0:00:33]} 29... Qxc3 {[%clk 0:00:44.3]} 30. Rcxc3 {[%clk
0:00:33.3]} 30... Nf6 {[%clk 0:00:45]} 31. Ra3 {[%clk 0:00:32.8]} 31... Kf7
{[%clk 0:00:44.2]} 32. Ra7 {[%clk 0:00:32.3]} 32... h6 {[%clk 0:00:43.7]} 33.
Bg2 {[%clk 0:00:30.2]} 33... Rb8 {[%clk 0:00:41.4]} 34. Rea3 {[%clk 0:00:22.4]}
34... Re8 {[%clk 0:00:30.7]} 35. Re3 {[%clk 0:00:20.5]} 35... Rb8 {[%clk
0:00:29.8]} 36. Rea3 {[%clk 0:00:11.5]} 36... Re8 {[%clk 0:00:29.3]} 37. Ra8
{[%clk 0:00:12]} 37... Re7 {[%clk 0:00:27.1]} 38. Re3 {[%clk 0:00:10]} 38... d5
{[%clk 0:00:26.8]} 39. cxd5 {[%clk 0:00:08.5]} 39... Nxd5 {[%clk 0:00:26.3]} 40.
Re1 {[%clk 0:00:08.7]} 40... Nxb4 {[%clk 0:00:25.3]} 41. Bxe4 {[%clk 0:00:09.2]}
41... fxe4 {[%clk 0:00:21.1]} 42. Rc8 {[%clk 0:00:07.1]} 42... b6 {[%clk
0:00:19.4]} 43. Ra1 {[%clk 0:00:03.6]} 43... e3 {[%clk 0:00:16.1]} 44. Kf1
{[%clk 0:00:02.4]} 44... e2+ {[%clk 0:00:15.6]} 45. Kf2 {[%clk 0:00:02.6]} 45...
Nd3+ {[%clk 0:00:15]} 0-1

[Event "*** Titled Tuesday Blitz"]
[Site "Chess.com"]
[Date "2020.12.29"]
[Round "3"]
[White "Macron20hTF1"]
[Black "MIJuanReyesRosa"]
[Result "1-0"]
[WhiteElo "2472"]
[BlackElo "2060"]
[TimeControl "180+1"]
[EndTime "10:29:08 PST"]
[Termination "Macron20hTF1 won on time"]

1. e4 {[%clk 0:03:00.9]} 1... c5 {[%clk 0:02:58.6]} 2. Nf3 {[%clk 0:02:59]} 2...
e6 {[%clk 0:02:58.4]} 3. d4 {[%clk 0:02:53.2]} 3... cxd4 {[%clk 0:02:58]} 4.
Nxd4 {[%clk 0:02:54.1]} 4... a6 {[%clk 0:02:58]} 5. Nc3 {[%clk 0:02:50.5]} 5...
Qc7 {[%clk 0:02:57]} 6. f4 {[%clk 0:02:48.2]} 6... Nc6 {[%clk 0:02:50.3]} 7.
Nxc6 {[%clk 0:02:46]} 7... bxc6 {[%clk 0:02:40.8]} 8. Bd3 {[%clk 0:02:45.1]}
8... d5 {[%clk 0:02:40.2]} 9. O-O {[%clk 0:02:41.4]} 9... Nf6 {[%clk 0:02:38.7]}
10. Qe2 {[%clk 0:02:39.2]} 10... Bc5+ {[%clk 0:02:29.1]} 11. Kh1 {[%clk
0:02:38.8]} 11... O-O {[%clk 0:02:28.9]} 12. Bd2 {[%clk 0:02:33]} 12... Rb8
{[%clk 0:02:24.6]} 13. Rae1 {[%clk 0:02:28.8]} 13... a5 {[%clk 0:02:09.5]} 14.
e5 {[%clk 0:01:45]} 14... Nd7 {[%clk 0:02:06.4]} 15. f5 {[%clk 0:01:42]} 15...
Bd4 {[%clk 0:01:52.8]} 16. Qg4 {[%clk 0:01:05.1]} 16... Bxe5 {[%clk 0:01:42]}
17. fxe6 {[%clk 0:01:02.6]} 17... Nf6 {[%clk 0:01:36]} 18. Rxf6 {[%clk
0:00:45.5]} 18... Bxf6 {[%clk 0:01:29.5]} 19. Qf5 {[%clk 0:00:45.7]} 19... fxe6
{[%clk 0:01:07.2]} 20. Qxh7+ {[%clk 0:00:45.7]} 20... Kf7 {[%clk 0:01:07.2]} 21.
Qg6+ {[%clk 0:00:35.4]} 21... Kg8 {[%clk 0:01:03.1]} 22. Qh5 {[%clk 0:00:30.7]}
22... g5 {[%clk 0:00:44.8]} 23. Bxg5 {[%clk 0:00:19.3]} 23... Bxg5 {[%clk
0:00:35.9]} 24. Qxg5+ {[%clk 0:00:20.2]} 24... Qg7 {[%clk 0:00:35.8]} 25. Qh4
{[%clk 0:00:20.2]} 25... Rb4 {[%clk 0:00:30.5]} 26. Qh5 {[%clk 0:00:16]} 26...
Rbf4 {[%clk 0:00:23.9]} 27. h3 {[%clk 0:00:11.6]} 27... e5 {[%clk 0:00:21.1]}
28. Qxe5 {[%clk 0:00:08.9]} 28... Rf1+ {[%clk 0:00:18]} 29. Bxf1 {[%clk
0:00:08.2]} 29... Rxf1+ {[%clk 0:00:17]} 30. Kh2 {[%clk 0:00:08.8]} 30... Rxe1
{[%clk 0:00:10.1]} 31. Qxe1 {[%clk 0:00:08.7]} 31... Qc7+ {[%clk 0:00:09.5]} 32.
Qg3+ {[%clk 0:00:08.6]} 32... Qxg3+ {[%clk 0:00:09.1]} 33. Kxg3 {[%clk
0:00:09.5]} 33... Kg7 {[%clk 0:00:09.4]} 34. Kf4 {[%clk 0:00:09.8]} 34... Kf6
{[%clk 0:00:08.3]} 35. g4 {[%clk 0:00:10]} 35... Ba6 {[%clk 0:00:07.8]} 36. Na4
{[%clk 0:00:08]} 36... Bf1 {[%clk 0:00:06]} 37. h4 {[%clk 0:00:08.4]} 37... d4
{[%clk 0:00:05.5]} 38. Nc5 {[%clk 0:00:08.4]} 38... Kf7 {[%clk 0:00:03.5]} 39.
Nb3 {[%clk 0:00:07.9]} 39... Bc4 {[%clk 0:00:01.4]} 40. Nxd4 {[%clk 0:00:07.7]}
40... Bxa2 {[%clk 0:00:01.7]} 41. Nxc6 {[%clk 0:00:08.2]} 41... a4 {[%clk
0:00:01.5]} 42. Nd4 {[%clk 0:00:08]} 1-0